Cogmind - Beta 12 @@@ ROGUE MODE // 2024.01.13 @ 22:08:21 Player: hanzu Result: Destroyed by G-47 Trooper with Particle Gun Performance ------------- Evolutions (0) 0 Regions Visited (2) 400 Robots Destroyed (39) 195 Value Destroyed (686) 686 Prototype IDs (2) 40 Alien Tech Used (0) 0 Bonus (0) 0 TOTAL SCORE: 1321 Bonus ------- None Cogmind --------- Core Integrity 0/250 Matter 280/300 Energy 125/125 System Corruption 0% Temperature Cool (9) Movement Walking (260) Ox2 Location -10/Mines Parts ------- > --- POWER (1) -------- Light Ion Engine > --- PROPULSION (2) --- Aluminum Leg > --- UTILITY (2) ------ Improved Heat Sink Large Storage Unit > --- WEAPON (2) ------- Light Assault Rifle Light Assault Rifle > --- INVENTORY (15) --- Light Ion Engine Huge Storage Unit Medium Matter Pod (100) Structural Scanner Visual Processing Unit Sensor Array Signal Interpreter Seismic Detector Hacking Suite Tractor Beam Small Laser Hammer Peak State ------------ > --- POWER ------------ Light Ion Engine > --- PROPULSION ------- Light Treads Light Treads > --- UTILITY ---------- Large Storage Unit Improved Terrain Scanner > --- WEAPON ----------- Medium Laser Small Laser > --- INVENTORY -------- Improved Heat Sink Seismic Detector Hacking Suite Particle Gun Hammer [Rating: 10] Favorites ----------- Power Light Ion Engine Engine Light Ion Engine Propulsion Light Treads Treads Light Treads Leg Aluminum Leg Utility Large Storage Unit Device Improved Terrain Scanner Storage Large Storage Unit Weapon Medium Laser Energy Gun Medium Laser Ballistic Gun Light Assault Rifle Impact Weapon Hammer Build | -11 -10 -10 ------- Run | Jun Mat Min Slots Evolved . | . . . Power . | . . . Propulsion . | . . . Utility . | . . . Weapon . | . . . Parts Attached 31 | 7 20 4 Power 5 | 1 3 1 Engine 5 | 1 3 1 Core . | . . . Reactor . | . . . Propulsion 8 | 2 5 1 Treads 7 | 2 5 . Leg 1 | . . 1 Wheel . | . . . Hover . | . . . Flight . | . . . Utility 7 | 2 5 . Device 3 | 1 2 . Storage 4 | 1 3 . Processor . | . . . Hackware . | . . . Protection . | . . . Artifact . | . . . Weapon 11 | 2 7 2 Energy Gun 8 | 2 6 . Energy Cannon . | . . . Ballistic Gun 2 | . . 2 Ballistic Cannon . | . . . Launcher . | . . . Special Weapon . | . . . Impact Weapon 1 | . 1 . Slashing Weapon . | . . . Piercing Weapon . | . . . Special Melee Weapon . | . . . Unidentified Prototypes . | . . . Parts Lost 10 | . 5 5 Power 3 | . 2 1 Propulsion 2 | . . 2 Utility 1 | . 1 . Weapon 4 | . 2 2 Highest Loss Streak 2 | . 2 2 To Critical Strikes . | . . . Average Slot Usage (%) 96 | . 97 94 Engine 13 | . 13 13 Treads 23 | . 27 12 Leg 2 | . . 10 Device 13 | . 13 14 Storage 14 | . 14 14 Energy Gun 23 | . 26 16 Ballistic Gun 3 | . . 11 Naked Turns . | . . . Heaviest Build 29 | 15 29 27 Greatest Support 40 | 40 40 40 Greatest Overweight (x) 8 | . 8 2 Average Overweight (x) . | . . 1 Largest Inventory Capacity 25 | 8 25 15 Average Capacity 13 | 7 14 15 Most Carried 14 | 4 14 14 Average Carried 10 | 2 10 13 Final Capacity 15 | 8 15 15 Final Carried 14 | 3 14 12 Class Distribution -------------------- 100% | Mutant Dominant Class ---------------- Mutant | -10/Materials Mutant | -10/Mines Resources | -11 -10 -10 ----------- Run | Jun Mat Min Matter Collected 582 | 270 280 32 Remotely . | . . . Salvage Created 1113 | 247 567 299 Parts 71 | 19 36 16 Haulers Intercepted 1 | . 1 . Recyclers Shooed 3 | 1 . 2 Parts Field Recycled . | . . . Retrieved Matter . | . . . Parts Self-Destructed . | . . . Prevented . | . . . Kills | -11 -10 -10 ------- Run | Jun Mat Min Combat Hostiles Destroyed 21 | . 11 10 Melee 1 | . 1 . Guns 19 | . 9 10 Classes Destroyed 10 | 3 7 . Worker 1 | 1 . . Builder 1 | . 1 . Tunneler 7 | 7 . . Hauler 1 | . 1 . Recycler 2 | 1 . 1 Mechanic 1 | . 1 . Operator 2 | . 2 . Watcher 3 | . 3 . Swarmer 9 | . 3 6 Grunt 12 | . 8 4 Best Kill Streak 4 | 4 3 4 Combat Bots Only 3 | . 3 3 Max Kills in Single Turn 1 | 1 1 1 Gunslinging . | . . . Exploded . | . . . Melee 1 | . 1 . Uniques/NPCs Destroyed . | . . . Combat | -11 -10 -10 -------- Run | Jun Mat Min Damage Taken 1233 | . 657 576 Core 251 | . 80 171 Absorbed by Shields . | . . . Regen/Repaired (Parts) 183 | . 183 . Core Remaining (%) 100 | 100 . . Volleys Fired 91 | 17 43 31 Largest 2 | 2 2 2 Hottest 90 | 80 90 90 Shots Fired 179 | 34 84 61 Gun 179 | 34 84 61 Cannon . | . . . Launcher . | . . . Special . | . . . Kinetic 22 | . . 22 Thermal 111 | . 72 39 Explosive . | . . . Electromagnetic 46 | 34 12 . Robot Hit Streak 16 | 11 6 16 Robot Miss Streak 4 | 2 3 4 Penetration Max . | . . . Secondary Targets 6 | . 4 2 Max Gunslinging Chain 1 | . 1 1 Shots Hit Robots 128 | 23 59 46 Core Hits 56 | 8 28 20 Critical Kills . | . . . Critical Parts Destroyed 2 | . 2 . Critical Strikes 4 | . 3 1 Burn 2 | . 1 1 Smash 2 | . 2 . Melee Attacks 8 | . 8 . Impact 8 | . 8 . Slashing . | . . . Piercing . | . . . Sneak Attacks 1 | . 1 . Combat Hostiles . | . . . Follow-up Attacks . | . . . Damage Inflicted 1928 | 453 957 518 Guns 1539 | 311 710 518 Cannons . | . . . Explosions 167 | 142 25 . Melee 222 | . 222 . Ramming . | . . . Kinetic 135 | . . 135 Thermal 1150 | 142 625 383 Explosive . | . . . Electromagnetic 421 | 311 110 . Impact 222 | . 222 . Slashing . | . . . Piercing . | . . . Highest Corruption . | . . . Average Corruption . | . . . Corruption Purged . | . . . Corruption Blocked . | . . . Overload Shots . | . . . Overflow Damage 86 | 32 54 . Projectiles . | . . . Explosions 32 | 32 . . Melee 54 | . 54 . Knockbacks 2 | . 2 . Impact 2 | . 2 . Kinetic . | . . . Secondary . | . . . Self-Inflicted Damage . | . . . Shots . | . . . Rammed . | . . . Targets Rammed . | . . . Kicked . | . . . Crushed . | . . . Highest Temperature 223 | 108 223 42 Average Temperature 53 | 41 66 19 Received Heat Transfer 579 | . 324 255 Siege Activations . | . . . Robots Corrupted . | . . . Combat Hostiles . | . . . Parts Fried 4 | 3 1 . Impact Corruptions 2 | . 2 . Robots Melted . | . . . Combat Hostiles . | . . . Parts Melted 7 | . 2 5 Heat Transferred 2900 | 200 1672 1028 Parts Sabotaged . | . . . Parts Stolen . | . . . Parts Stripped . | . . . Power Chain Reactions 4 | 3 1 . Missiles Intercepted . | . . . Alert | -11 -10 -10 ------- Run | Jun Mat Min Peak Influence 181 | 45 139 181 Initial 29 | . 29 . Average 54 | 20 43 98 Maximum Alert Level . | . . . Low Security (%) 100 | 100 100 100 Level 1 . | . . . Level 2 . | . . . Level 3 . | . . . Level 4 . | . . . Level 5 . | . . . High Security . | . . . Max Security . | . . . Squads Dispatched 4 | . 3 1 Investigation 3 | . 2 1 Extermination . | . . . Reinforcement 1 | . 1 . Assault . | . . . Garrison . | . . . Intercept . | . . . Searches Triggered . | . . . Construction Impeded . | . . . Haulers Reinforced . | . . . Active Scanning Responses . | . . . Cargo Convoy Interrupts . | . . . Stealth | -11 -10 -10 --------- Run | Jun Mat Min Distress Signals 1 | . 1 . Communications Jammed . | . . . Distress Signals . | . . . Times Spotted 30 | . 19 11 Peak Tracking Total 4 | . 4 3 Tactical Retreats . | . . . Traps | -11 -10 -10 ------- Run | Jun Mat Min Traps Triggered 5 | . 5 . Indirectly . | . . . Trap Hack Attempts . | . . . Triggered . | . . . Disarmed . | . . . Reprogrammed . | . . . Reused . | . . . Traps Extracted . | . . . Installed . | . . . Triggered . | . . . Machines | -11 -10 -10 ---------- Run | Jun Mat Min Machines Disabled . | . . . Max in Single Turn . | . . . Machines Repaired . | . . . Machines Sabotaged . | . . . Overloaded Fab Kills . | . . . Hacking | -11 -10 -10 --------- Run | Jun Mat Min Machines Accessed 11 | . 10 1 Terminals 8 | . 7 1 Fabricators . | . . . Repair Stations 1 | . 1 . Recycling Units 2 | . 2 . Scanalyzers . | . . . Garrison Access . | . . . Total Hacks 43 | . 40 3 Successful 19 | . 18 1 Failed 23 | . 21 2 Catastrophic 3 | . 2 1 Database Lockouts 1 | . 1 . Manual 28 | . 25 3 Terminals 31 | . 28 3 Fabricators . | . . . Repair Stations 9 | . 9 . Recycling Units 3 | . 3 . Scanalyzers . | . . . Garrison Access . | . . . Terminal Hacks 7 | . 6 1 Robot Analysis 6 | . 5 1 Prototype ID Bank 1 | . 1 . Fabricator Hacks . | . . . Repair Station Hacks 6 | . 6 . Scan Component 3 | . 3 . Repair 3 | . 3 . Recycling Unit Hacks 1 | . 1 . Retrieve Components 1 | . 1 . Scanalyzer . | . . . Garrison Access Hacks . | . . . Unauthorized Hacks 5 | . 5 . Terminals 3 | . 3 . Botnet 2 | . 2 . Operators 1 | . 1 . Fabricators . | . . . Repair Stations 1 | . 1 . Mechanics 1 | . 1 . Recycling Units 1 | . 1 . Recyclers 1 | . 1 . Scanalyzers . | . . . Garrison Access . | . . . Data Cores Recovered 1 | . 1 . Used . | . . . Hacking Detections 11 | . 10 1 Full Trace Events 2 | . 1 1 Feedback Events . | . . . Feedback Blocked . | . . . Robot Schematics Acquired . | . . . Robots Built . | . . . Authchips . | . . . Time . | . . . Total Robot Build Rating . | . . . Part Schematics Acquired . | . . . Parts Built . | . . . Authchips . | . . . Time . | . . . Total Part Build Rating . | . . . Parts Repaired 3 | . 3 . Time 78 | . 78 . Parts Recycled . | . . . Recycled Matter . | . . . Retrieved Matter . | . . . Retrieved Components 9 | . 9 . Parts Scanalyzed . | . . . Part Schematics Acquired . | . . . Parts Damaged . | . . . Bothacking | -11 -10 -10 ------------ Run | Jun Mat Min Used RIF Installer . | . . . Robots Hacked . | . . . Non-combat . | . . . Combat . | . . . Robot Hacks Applied . | . . . Relay Couplers Released . | . . . Fabnet Peak Effective % . | . . . Robots Rewired . | . . . Allies Hacked . | . . . Hacks Repelled . | . . . Allies | -11 -10 -10 -------- Run | Jun Mat Min Total Allies . | . . . Largest Group . | . . . Highest-Rated Group . | . . . Highest-Rated Ally . | . . . Total Orders . | . . . Ally Attacks . | . . . Total Damage . | . . . Kills . | . . . Allies Corrupted . | . . . Allies Melted . | . . . Intel | -11 -10 -10 ------- Run | Jun Mat Min Robot Analysis Total 6 | . 5 1 Derelict Logs Recovered . | . . . Drone Launches . | . . . Drone Recoveries . | . . . Exploration | -11 -10 -10 ------------- Run | Jun Mat Min Turns Passed 2055 | 238 1329 488 Spaces Moved 909 | 80 661 168 Core 8 | 7 1 . Treads 864 | 73 660 131 Legs 37 | . . 37 Wheels . | . . . Hover . | . . . Flight . | . . . Fastest Speed 50 | 50 160 160 Average Speed 174 | 150 163 231 Slowest Speed 450 | 160 450 260 Overloaded Moves . | . . . Propulsion Burnouts . | . . . Robots Hopped . | . . . Cave-ins Triggered . | . . . Exploration Rate (%) 48 | 6 99 40 Regions Visited 2 Branch Regions 1 Pre-discovered Areas . | . . . Known Exits Taken . | . . . Unknown Exits Taken 2 | 1 1 . Scrap Searched . | . . . Spaces Dug . | . . . Terrain Destroyed 17 | 16 1 . Melee . | . . . Projectile . | . . . AOE 17 | 16 1 . Terrain Rammed . | . . . Walls Destroyed . | . . . Machines Disabled . | . . . Actions | -11 -10 -10 --------- Run | Jun Mat Min Total 1176 | 161 804 211 Wait 116 | 54 55 7 Move 907 | 79 660 168 Hop . | . . . Pick Up 21 | 4 16 1 Fast Attach 17 | 6 10 1 Attach 9 | 1 5 3 Detach . | . . . Swap 5 | . 5 . Drop 2 | . 2 . Fire 91 | 17 43 31 Melee 8 | . 8 . Ram . | . . . Kick . | . . . Crush . | . . . Escape Stasis . | . . . Rewire . | . . . Trap . | . . . Miscellaneous . | . . . Route ------- -11/Junkyard -10/Materials (discovered 5 exits: [*Mat x3] / *Min x2) -10/Mines (discovered 2 exits: [*Mat] / [*Exi]) History --------- Turn | Location | Event 22 | -11/Junkyard | Discovered new exit (range 16) 239 | -11/Junkyard | Entered Materials 313 | -10/Materials | Build established: Mutant 382 | -10/Materials | Discovered new exit (range 16) 624 | -10/Materials | Discovered new exit (range 9) 760 | -10/Materials | Repaired Lgt. Treads? 805 | -10/Materials | Repaired Lgt. Treads 833 | -10/Materials | Repaired Med. Laser 1078 | -10/Materials | Discovered new exit (range 6) 1112 | -10/Materials | Central database locked down 1259 | -10/Materials | Discovered new exit (range 12) 1501 | -10/Materials | Discovered new exit (range 7) 1568 | -10/Materials | Entered Mines 1569 | -10/Mines | Met a Derelict bent on vengeance 1586 | -10/Mines | Discovered new exit (range 13) 1653 | -10/Mines | Core integrity fell below 50% 1838 | -10/Mines | Deemed a non-threat by the Exiles lab entrance 1841 | -10/Mines | Discovered new exit (range 5) 1987 | -10/Mines | Assembled infested the area 2037 | -10/Mines | Core integrity fell below 20% 2056 | -10/Mines | Destroyed by G-47 Trooper with Particle Gun Last Messages --------------- 01663_ Acquired 11 matter. 01672_ Acquired Aluminum Leg. 01674_ Acquired 10 matter. 01686_ Acquired Lgt. Ion Engine. 01838_ "No threat detected, you may enter." 01841_ EXIT=FOUND 01868_ K-01 Serf collects debris. 01908_ S-10 Pest destroyed. 01915_ Lgt. Ion Engine destroyed. 01916_ S-10 Pest destroyed. 01916_ Switching to secondary target: S-10 Pest. 01924_ Lgt. Treads destroyed. 01925_ S-10 Pest destroyed. 01931_ Acquired 11 matter. 01942_ T-07 Excavator is excavating. 01987_ ALERT: Infestation in the mines, dispatching Demolisher response squad. 02040_ Med. Laser destroyed. 02046_ G-34 Mercenary destroyed. 02046_ Switching to secondary target: G-47 Trooper. Map ----- +----------------------------------------------------+ | ???????????????????????????????????????? | | ???????????????????????????????????????? | | ???????????????????????????????????????? | | ???????????????????????????????????????? | | ???????????????????????????????????????? | | ???????????????????????????????????????? | | ???????????????????????????????????????? | | ???????????????????????????????????????? | | ???????????????????????????????????????? | | ???????????????????????????????????????? | | ???????????????????????????????????????? | | ???????????????????????????????????????? | | ???????????????????????????????????????? | | ???????????????????????????????????????? | | ???????????????????????????????????????? | | ???????????????????????????????????????? | | ??????????????????????????????????????? | | ?????????????????????????????????????? | | ?????????????????????????????????????? | | ?????????????????????????????????????? | | ?????????????????????????????????????? | | ????????????#####???????????#####????? | | #???????##### ##???????#### ##???? | | #??????## ##????### ##??? | | ##????## ##??## ##?? | | ##?### ### ####@ #?? | | ### ##?## ## ## ##?? | | ##???# *%= ##?###??? | | #????## g #???????? | | #### #?????## ##???????? | | ###??# #??????## # # ##????????? | | ##????# #???????####%=#####?????????? | | ##?????# #??????????#=%#?????????????? | | #??????# #??????????# =#?????????????? | | #??????# #??????????# ##????????????? | | ##?????# #?????????## ##???????????? | | ###???# ###??????## # #????????? | | ##??# ##?????# #????????? | | #??### #?????# #????????? | | #????# ##?????## ####????????? | | #???# #???????# ##???????????? | | ##???# ##???????## #????????????? | | ######????< ??????????#####????????????? | | #????????###???????????????????????????? | | ???????????????????????????????????????? | | ???????????????????????????????????????? | | ???????????????????????????????????????? | | | | | | | +----------------------------------------------------+ Best States ------------- Heat Dissipation 39 Energy Generation 10 Energy Capacity 250 Matter Stores 300 Matter Capacity 300 Sight Range 16 Terrain Scan Range 16 Terrain Scan Density 10 Evasion (%) 40 Recoil Reduction 2 Item Schematics ----------------- None Robot Schematics ------------------ None Fabricated ------------ Nothing Alien Tech Used ----------------- None Achievements -------------- None Challenges ------------ None Game ------ Seed PoweredReactiveWings Manual? 0 Play Time 00:13:26 Cumulative 173.3 hours Start 2024.01.13 @ 21:56:41 End 2024.01.13 @ 22:08:21 Sessions 1 Manual Loads 0 Difficulty Rogue Special Mode None Game No. 152 Rogue 152 Adventurer 0 Explorer 0 Win Type - Total 1 Types 1/0/0/0/0/0/0/0/0 Lore% 55 Gallery% 68 Achievement% 53 Wizard Run 0 Options --------- ASCII 0 Keyboard 0 Movement Numpad Keybinds 0 Fullscreen 2 Font 18/Smallcaps Map View 76x50 Tactical HUD 1 Map Filters NONE Filters NONE Steam 1 RUN: 4b79c4e8-0347-4a8d-8af5-0234c5b0d711